bitfinex/quotes_ETHUSD_20251006
["timestamp","ask_amount","ask_price","bid_price","bid_amount"]
[1759783054822,3.61224937,4701.7,4701.6,0.001]
[1759783055148,3.0652267,4701.7,4701.6,0.001]
[1759783058832,3.0652267,4701.7,4701.6,0.001]
[1759783059030,3.5188267,4701.7,4701.6,0.001]
[1759783059645,4.33240171,4701.7,4701.6,0.001]
[1759783060029,4.33296771,4701.7,4701.6,0.001]
[1759783060425,3.87936771,4701.7,4701.6,0.001]
[1759783061455,1.75247744,4701.7,4701.6,0.001]
[1759783061659,2.4321927,4701.7,4701.6,0.4462]
[1759783061857,3.0657927,4701.7,4701.6,0.4462]
[1759783066757,0.93890243,4701.7,4701.6,0.4462]
[1759783068638,3.0657927,4701.7,4701.6,0.4462]
[1759783069833,0.93890243,4701.7,4701.6,0.4462]
[1759783070033,3.0657927,4701.7,4701.6,0.4462]
[1759783072353,3.06597293,4701.7,4701.6,0.4462]
[1759783072646,0.93908266,4701.7,4701.6,0.4462]
[1759783075353,0.93908266,4701.7,4701.6,0.001]
[1759783077967,3.06597293,4701.7,4701.6,0.001]
[1759783082561,4.06453707,4701.7,4701.6,0.001]
[1759783082971,4.06452628,4701.7,4701.6,0.001]
[1759783083852,1.48403601,4701.7,4701.6,0.001]
[1759783084057,3.06599699,4701.7,4701.6,0.001]
[1759783084259,0.93910672,4701.7,4701.6,0.001]
[1759783084952,0.93910672,4701.7,4701.6,0.4671]
[1759783090082,3.06599699,4701.7,4701.6,0.001]
[1759783091086,0.93910672,4701.7,4701.6,0.001]
[1759783091984,3.06599699,4701.7,4701.6,0.001]
[1759783092960,0.93910672,4701.7,4701.6,0.001]
[1759783094290,3.06599699,4701.7,4701.6,0.001]
[1759783095394,0.93910672,4701.7,4701.6,0.001]
[1759783095959,3.06599699,4701.7,4701.6,0.001]
[1759783098462,0.93910672,4701.7,4701.6,0.001]
[1759783104105,0.74,4701.7,4701.6,0.4671]
[1759783104405,0.1064,4701.7,4701.6,0.4671]
[1759783104591,0.1064,4701.7,4701.6,2.88094551]
[1759783104782,0.002,4701.8,4701.7,2.12689027]
[1759783105190,0.002,4701.8,4701.7,2.59299027]
[1759783107579,0.002,4701.8,4701.7,4.99499027]
[1759783112277,0.002,4701.8,4701.6,0.1074]
[1759783112482,0.002,4701.8,4701.7,2.402]
[1759783112483,1.0883,4701.8,4701.7,2.402]
[1759783112700,1.1947,4701.8,4701.7,2.402]
[1759783115022,0.742,4701.8,4701.7,2.402]
[1759783115184,0.742,4701.8,4701.6,0.001]
[1759783115485,0.742,4701.8,4701.7,2.402]
[1759783117938,0.742,4701.8,4701.6,0.001]
[1759783118237,0.742,4701.8,4701.7,2.402]
[1759783120125,0.6336,4701.7,4701.6,0.001]
[1759783120307,2.94300027,4701.7,4701.6,0.001]
[1759783120506,3.39250027,4701.7,4701.6,0.001]
[1759783121041,3.39250027,4701.7,4701.6,0.512]
[1759783121824,3.39250027,4701.7,4701.6,0.001]
[1759783122641,3.39250027,4701.7,4701.6,2.403]
[1759783123639,3.39250027,4701.7,4701.6,0.001]
[1759783123941,3.39250027,4701.7,4701.6,2.403]
[1759783124148,3.39250027,4701.7,4701.6,0.001]
[1759783124347,3.39250027,4701.7,4701.6,2.403]
[1759783124549,3.39250027,4701.7,4701.6,0.001]
[1759783124733,3.59118139,4701.7,4701.6,0.001]
[1759783129154,3.67630307,4701.7,4701.6,0.001]
[1759783133024,3.59118139,4701.7,4701.6,0.001]
[1759783137476,5.99118139,4701.7,4701.6,0.001]
[1759783137766,6.07630796,4701.7,4701.6,0.001]
[1759783138932,6.53349122,4701.7,4701.6,0.001]
[1759783142164,6.3348101,4701.7,4701.6,0.001]
[1759783142951,6.53334013,4701.7,4701.6,0.001]
[1759783145180,6.08384013,4701.7,4701.6,0.001]
[1759783145383,4.9079303,4701.7,4701.6,0.001]
[1759783145681,4.7254203,4701.7,4701.6,0.4476]
[1759783145885,2.3254203,4701.7,4701.6,0.4476]
[1759783146190,2.9590203,4701.7,4701.6,0.4476]
[1759783149142,3.4187203,4701.7,4701.6,0.001]
[1759783149346,4.45367324,4701.7,4701.6,0.001]
[1759783149765,4.91164251,4701.7,4701.6,0.001]
[1759783150680,2.76085222,4700.9,4700.8,0.4096]
[1759783150881,2.95938225,4700.9,4700.8,0.4096]
[1759783152395,2.95977239,4700.9,4700.8,0.4096]
[1759783155792,3.06617239,4700.9,4700.8,0.4096]
[1759783158136,3.06617239,4700.9,4700.8,1.4096]
[1759783158810,3.06632037,4700.9,4700.8,1.4096]
[1759783160137,3.06632037,4700.9,4700.8,1.0]
[1759783162808,4.09134112,4700.9,4700.8,1.0]
[1759783163239,3.63164112,4700.9,4700.8,1.0]
[1759783163441,3.63164112,4700.9,4700.8,1.4466]
[1759783163648,3.06632037,4700.9,4700.8,1.0]
[1759783163823,3.06632037,4700.9,4700.8,1.4466]
[1759783167352,0.93906815,4700.9,4700.8,1.4466]
[1759783167832,3.06632037,4700.9,4700.8,1.4466]
[1759783168152,3.06632037,4700.9,4700.8,1.4476]
[1759783168315,3.06832037,4700.9,4700.8,1.4476]
[1759783170069,0.94106815,4700.9,4700.8,1.4476]
[1759783170566,3.06832037,4700.9,4700.8,1.4476]
[1759783172660,0.30746815,4700.9,4700.8,1.4476]
[1759783172968,0.1084,4700.9,4700.8,1.001]
[1759783173168,0.1084,4700.9,4700.8,3.403]
[1759783173367,0.30750175,4700.9,4700.8,3.403]
[1759783173570,0.1084,4700.9,4700.8,3.8551]
[1759783175539,0.1084,4700.9,4700.8,1.4531]
[1759783175760,0.1084,4700.9,4700.8,3.8541]
[1759783175960,0.1084,4700.9,4700.8,3.402]
[1759783177036,0.1084,4700.9,4700.8,3.8595]
[1759783181565,0.1084,4700.9,4700.8,1.001]
[1759783181566,0.30744178,4700.9,4700.8,1.001]
[1759783181769,2.23565222,4700.9,4700.8,3.402]
[1759783182265,0.1084,4700.9,4700.8,3.402]
[1759783182570,2.23565222,4700.9,4700.8,3.402]
[1759783183363,0.1084,4700.9,4700.8,3.402]
[1759783187271,0.1084,4700.9,4700.8,3.8595]
[1759783189072,0.1084,4700.9,4700.8,3.402]
[1759783191484,2.43470031,4700.9,4700.8,1.001]
[1759783191675,2.89550031,4700.9,4700.8,3.402]
[1759783192489,4.03136918,4700.9,4700.8,3.402]
[1759783194595,3.57056918,4700.9,4700.8,1.001]
[1759783194890,4.03136918,4700.9,4700.8,1.001]
[1759783195192,3.52910031,4700.9,4700.8,3.402]
[1759783195379,3.52910031,4700.9,4700.8,1.001]
[1759783195764,3.52910031,4700.9,4700.8,3.402]
[1759783198369,3.52917635,4700.9,4700.8,3.402]
[1759783198592,3.52917635,4700.9,4700.8,1.001]
[1759783198766,3.52917635,4700.9,4700.8,3.402]
[1759783199287,3.52917381,4700.9,4700.8,3.402]
[1759783200503,3.52917381,4700.9,4700.8,1.001]
[1759783200672,3.52917381,4700.9,4700.8,3.402]
[1759783202877,3.06837381,4700.9,4700.8,3.402]
[1759783203082,2.86925222,4700.9,4700.8,3.402]
[1759783203282,3.06831196,4700.9,4700.8,3.402]
[1759783203482,2.86925222,4700.9,4700.8,3.402]
[1759783203683,3.06831015,4700.9,4700.8,3.402]
[1759783203885,3.06831229,4700.9,4700.8,3.402]
[1759783204375,2.86925222,4700.9,4700.8,3.402]
[1759783205998,2.86925222,4700.9,4700.8,3.8633]
[1759783205999,0.742,4700.9,4700.8,3.8633]
[1759783206185,0.9411534,4700.9,4700.8,3.8633]
[1759783206388,0.1084,4700.9,4700.8,3.8633]
[1759783207211,3.0684041,4700.9,4700.8,3.402]
[1759783208106,3.59906542,4700.9,4700.8,1.001]
[1759783208286,4.06516542,4700.9,4700.8,1.001]
[1759783208491,4.06516542,4700.9,4700.8,3.402]
[1759783209308,4.06516542,4700.9,4700.8,1.001]
[1759783212400,3.43156542,4700.9,4700.8,1.001]
[1759783212584,4.06516542,4700.9,4700.8,0.996344]
[1759783217988,3.95876542,4700.9,4700.8,0.996344]
[1759783219023,3.95840481,4700.9,4700.8,0.996344]
[1759783222328,3.49230481,4700.9,4700.8,0.996344]
[1759783223624,3.95840481,4700.9,4700.8,0.996344]
[1759783224222,3.49230481,4700.9,4700.8,0.996344]
[1759783226502,3.95840481,4700.9,4700.8,0.996344]
[1759783228323,4.06480481,4700.9,4700.8,0.996344]
[1759783231647,3.59870481,4700.9,4700.8,0.996344]
[1759783232015,4.06480481,4700.9,4700.8,0.996344]
[1759783232339,3.59870481,4700.9,4700.8,0.996344]
[1759783232561,3.06804349,4700.9,4700.8,0.996344]
[1759783232750,3.06804349,4700.9,4700.8,1.457644]
[1759783233156,3.06804349,4700.9,4700.8,0.996344]
[1759783238128,3.06807166,4700.9,4700.8,0.996344]
[1759783239754,8.66300139,4700.9,4700.8,0.996344]
[1759783239955,10.88118059,4700.9,4700.8,0.996344]
[1759783240320,2.76094273,4700.7,4700.6,0.001]
[1759783240525,8.2177919,4700.7,4700.6,0.001]
[1759783240749,8.6600919,4700.7,4700.6,0.001]
[1759783241036,8.7450515,4700.7,4700.6,0.001]
[1759783241333,10.70377251,4700.7,4700.6,0.001]
[1759783245662,14.69399595,4700.7,4700.6,0.001]
[1759783245837,14.69399595,4700.7,4699.8,0.001]
[1759783245838,9.59407822,4699.9,4699.8,0.001]
[1759783246041,12.65149634,4699.9,4699.8,0.001]
[1759783246260,14.57170989,4699.9,4699.8,0.001]
[1759783246444,14.11368016,4699.9,4699.8,0.001]
[1759783246959,14.19884081,4699.9,4699.8,0.001]
[1759783247967,14.65566943,4699.9,4699.8,0.001]
[1759783249745,14.76206943,4699.9,4699.8,0.001]
[1759783251454,14.30524081,4699.9,4699.8,0.001]
[1759783253249,14.76103973,4699.9,4699.8,0.001]
[1759783254560,10.75223296,4699.9,4699.8,0.001]
[1759783257544,10.55384457,4699.9,4699.8,0.001]
[1759783257739,10.75147057,4699.9,4699.8,0.001]
[1759783261144,2.1279765,4699.3,4698.8,0.001]
[1759783261465,7.19453103,4698.9,4698.8,0.001]
[1759783261763,9.79315703,4698.9,4698.8,0.001]
[1759783262261,10.23685703,4698.9,4698.8,0.001]
[1759783263363,5.80408365,4698.9,4698.8,0.001]
[1759783263538,7.29760371,4698.9,4698.8,0.001]
[1759783264563,6.85383601,4698.9,4698.8,0.001]
[1759783266541,6.85064311,4698.9,4698.8,0.001]
[1759783266744,6.85064311,4698.9,4698.8,0.454]
[1759783266960,6.65308481,4698.9,4698.8,0.454]
[1759783267154,6.65308481,4698.9,4698.8,0.001]
[1759783267738,6.8508226,4698.9,4698.8,0.001]
[1759783267979,6.85082041,4698.9,4698.8,0.001]
[1759783268483,7.75833018,4698.9,4698.8,0.001]
[1759783268844,10.15833018,4698.9,4698.8,0.001]
[1759783270277,10.15841512,4698.9,4698.8,0.001]
[1759783271242,10.26481512,4698.9,4698.8,0.001]
[1759783271447,10.72086063,4698.9,4698.8,0.001]
[1759783272600,2.12824823,4698.7,4696.6,0.449]
[1759783272788,2.12824823,4698.7,4697.1,2.12893895]
[1759783272789,0.6336,4698.5,4697.1,2.12893895]
[1759783273084,4.99893031,4698.6,4697.1,2.12893895]
[1759783273085,0.6336,4697.8,4697.1,2.12893895]
[1759783273965,0.6336,4697.9,4696.9,2.401]
[1759783274164,2.7623945,4697.5,4697.0,0.30335172]
[1759783274571,0.6336,4697.5,4697.1,0.3019]
[1759783275004,2.76230281,4697.7,4697.1,0.3019]
[1759783275189,0.6336,4697.8,4697.1,0.3019]
[1759783275388,0.6336,4697.8,4697.2,0.30062517]
[1759783275600,0.6336,4697.8,4697.3,0.3019]
[1759783275775,0.6336,4697.7,4697.3,0.3019]
[1759783276271,0.6336,4697.8,4697.3,0.3019]
[1759783276707,0.6336,4697.7,4697.3,0.3019]
[1759783276906,2.76231094,4697.7,4697.3,0.57505447]
[1759783277112,0.6336,4697.5,4697.4,0.3019]
[1759783277411,0.6336,4697.5,4697.2,0.60252517]
[1759783277569,0.6336,4697.5,4697.2,0.30062517]
[1759783277766,3.0388232,4698.6,4697.3,0.3019]
[1759783277973,0.83181941,4698.5,4697.3,0.3019]
[1759783278184,0.6336,4697.6,4697.3,0.3019]
[1759783278385,0.6336,4697.5,4697.3,0.3019]
[1759783279211,0.6336,4697.5,4697.4,0.3019]
[1759783279515,0.6336,4697.8,4697.4,0.3019]
[1759783279904,0.6336,4697.6,4697.5,0.3019]
[1759783280270,0.6336,4697.4,4697.2,0.60252517]
[1759783280474,2.76243725,4697.4,4697.2,0.3019]
[1759783282092,0.6336,4697.6,4697.2,0.3019]
[1759783282413,0.74,4697.3,4697.2,0.3019]
[1759783283814,0.74,4697.3,4696.5,2.1292109]
[1759783284007,0.74,4697.3,4697.1,2.401]
[1759783284008,0.6336,4697.2,4697.1,2.401]
[1759783284190,2.76252787,4697.2,4697.1,2.401]
[1759783284381,2.86892787,4697.2,4697.1,2.401]
[1759783284992,0.74,4697.2,4697.1,2.401]
[1759783285478,2.86893358,4697.2,4697.1,2.401]
[1759783285679,0.74,4697.2,4697.1,2.401]
[1759783285880,0.74,4697.2,4697.1,2.7029]
[1759783287113,0.74,4697.2,4697.1,0.3019]
[1759783287315,0.74,4697.2,4697.1,2.7029]
[1759783287613,0.1064,4697.2,4697.1,3.18620473]
[1759783288313,0.74,4697.2,4697.1,3.18620473]
[1759783288897,0.74,4697.2,4697.1,0.78520473]
[1759783289096,0.74,4697.2,4697.1,2.88430473]
[1759783290735,0.74,4697.2,4697.1,2.401]
[1759783291028,0.74,4697.2,4696.8,0.001]
[1759783291338,0.6336,4697.1,4696.9,2.401]
[1759783292229,0.6336,4697.1,4697.0,2.401]
[1759783292431,0.1064,4697.2,4697.0,2.401]
[1759783292805,0.6336,4697.1,4697.0,2.401]
[1759783295407,0.6336,4697.1,4696.8,0.001]
[1759783295609,0.6336,4697.1,4696.9,2.401]
[1759783296235,0.6336,4697.1,4696.8,0.001]
[1759783296654,0.6336,4697.1,4696.9,2.401]
[1759783297131,0.1064,4697.2,4697.0,2.43088109]
[1759783297519,0.74,4697.2,4697.1,0.3019]
[1759783297741,0.74,4697.2,4697.1,2.43087319]
[1759783297938,0.1064,4697.2,4697.1,2.12897319]
[1759783298250,0.1084,4697.4,4697.2,2.12892787]
[1759783298442,0.742,4697.4,4697.3,2.72197813]
[1759783298753,0.742,4697.4,4697.3,3.02387813]
[1759783299444,0.1084,4697.4,4697.3,5.15276067]
[1759783299749,0.1084,4697.4,4697.3,0.32097813]
[1759783299922,0.1084,4697.4,4697.3,2.401]
[1759783300949,0.742,4697.4,4697.3,2.401]
[1759783301133,1.203,4697.4,4697.3,2.401]
[1759783301852,0.742,4697.4,4697.3,2.401]
[1759783302553,0.742,4697.4,4696.8,0.001]
[1759783302722,0.742,4697.4,4696.9,2.89484858]
[1759783302922,0.742,4697.4,4697.0,2.401]
[1759783304866,0.6336,4697.3,4697.1,2.401]
[1759783305064,0.463,4697.4,4696.8,0.001]
[1759783305065,0.1064,4697.0,4696.8,2.1301016]
[1759783305239,0.1064,4697.0,4696.9,2.401]
[1759783306266,0.74,4697.0,4696.9,2.401]
[1759783306467,0.74,4697.0,4696.9,2.7029]
[1759783306668,0.74,4697.0,4696.9,2.401]
[1759783309270,1.201,4697.0,4696.9,2.401]
[1759783309569,0.74,4697.0,4696.8,0.001]
[1759783309756,0.74,4697.0,4696.9,2.401]
[1759783310257,1.201,4697.0,4696.9,2.401]
[1759783310644,0.74,4697.0,4696.9,2.401]
[1759783310845,1.201,4697.0,4696.9,2.401]
[1759783313173,1.201,4697.0,4696.8,0.001]
[1759783313174,0.6336,4696.9,4696.8,0.001]
[1759783313470,0.6336,4696.9,4696.8,2.402]
[1759783313673,0.6336,4696.9,4696.8,0.001]
[1759783313840,0.6336,4696.9,4696.8,2.402]
[1759783314044,1.0946,4696.9,4696.8,2.402]
[1759783314642,2.59006385,4696.9,4696.8,0.001]
[1759783314847,3.70620316,4696.9,4696.8,2.402]
[1759783315072,3.70620316,4696.9,4696.8,0.001]
[1759783315383,3.70620316,4696.9,4696.8,2.402]
[1759783316076,3.70620316,4696.9,4696.8,0.001]
[1759783316267,3.70620316,4696.9,4696.8,2.402]
[1759783316466,3.90443079,4696.9,4696.8,2.402]
[1759783317176,3.90441053,4696.9,4696.8,2.402]
[1759783317679,3.70620316,4696.9,4696.8,2.402]
[1759783317883,3.90436586,4696.9,4696.8,2.402]
[1759783318302,3.90432485,4696.9,4696.8,0.001]
[1759783319090,3.90432839,4696.9,4696.8,0.001]
[1759783322285,1.77526454,4696.9,4696.8,0.001]
[1759783322480,1.29272523,4696.9,4696.8,0.001]
[1759783322886,0.002,4697.0,4696.8,0.001]
[1759783323197,0.002,4697.0,4696.9,0.3019]
[1759783323382,0.002,4697.0,4696.9,2.12906385]
[1759783323585,0.002,4697.0,4696.9,2.43096385]
[1759783326502,0.002,4697.0,4696.9,4.9161303]
[1759783326680,0.002,4697.4,4696.9,4.9161303]
[1759783326681,0.002,4697.4,4697.0,2.4]
[1759783326881,0.002,4697.9,4697.1,2.401]
[1759783327091,0.002,4697.9,4697.4,2.12883722]
[1759783327265,0.002,4697.9,4697.8,2.12865596]
[1759783327810,0.002,4697.9,4697.8,2.43055596]
[1759783328165,0.002,4697.9,4697.8,2.51570881]
[1759783328933,0.002,4697.9,4697.8,4.91670881]
[1759783332994,0.002,4697.9,4697.8,5.02310881]
[1759783333708,0.01,4698.9,4697.9,2.4]
[1759783334022,0.01,4698.9,4698.4,2.12835037]
[1759783334170,0.01,4698.9,4698.5,2.4]
[1759783334368,0.4515,4698.9,4698.6,2.4]
[1759783334905,0.4415,4698.8,4698.6,2.4]
[1759783335209,0.4415,4698.7,4697.3,0.3019]
[1759783335401,2.12834138,4698.5,4697.7,0.63864641]
[1759783335613,2.56984138,4698.5,4697.8,4.8]
[1759783335797,2.56984138,4698.5,4697.8,2.4]
[1759783335998,0.01,4698.9,4696.7,0.3019]
[1759783335999,0.6336,4698.3,4696.7,0.3019]
[1759783336183,0.01,4698.9,4695.5,3.54361157]
[1759783336184,0.6336,4698.1,4696.6,0.63880007]
[1759783336501,2.12887739,4697.4,4696.9,2.4]
[1759783336705,0.4415,4697.3,4696.9,2.4]
[1759783337403,1.0751,4697.9,4696.9,2.4]
[1759783337906,0.6336,4697.6,4696.9,2.4]
[1759783338107,2.76235639,4697.6,4696.9,2.4]
[1759783338297,3.20385639,4697.6,4697.0,2.4]
[1759783342008,3.20385639,4697.6,4697.1,2.4]
[1759783342009,3.20384742,4697.6,4697.1,2.4]
[1759783342397,0.6336,4697.4,4697.1,2.4]
[1759783342924,0.4415,4697.3,4697.1,2.4]
[1759783343596,0.5479,4697.3,4696.8,1.88006923]
[1759783343801,0.5479,4697.3,4696.9,2.12906014]
[1759783344057,0.5479,4697.3,4696.4,0.001]
[1759783344058,2.12924518,4696.5,4696.4,0.001]
[1759783344241,2.76289052,4696.4,4696.3,0.001]
[1759783344530,3.20439052,4696.4,4696.3,0.001]
[1759783344739,3.9506719,4696.4,4696.3,0.001]
[1759783345231,4.03588824,4696.4,4696.3,0.001]
[1759783349449,6.43588824,4696.4,4696.3,0.001]
[1759783349929,9.03265107,4696.4,4696.3,0.001]
[1759783350126,0.6336,4696.2,4696.1,1e-08]
[1759783350327,2.6935911,4696.2,4696.1,1e-08]
[1759783350521,3.1350911,4696.2,4696.1,1e-08]
[1759783350759,5.2644723,4696.2,4696.1,1e-08]
[1759783351560,12.10215316,4696.2,4696.1,1e-08]
[1759783354182,12.20855316,4696.2,4696.1,1e-08]
[1759783354582,12.20855316,4696.2,4695.5,1.33161157]
[1759783354583,2.76307189,4696.0,4695.5,1.33161157]
[1759783354883,9.82105303,4696.0,4695.5,1.33161157]
[1759783355093,10.29565303,4696.0,4695.5,1.33161157]
[1759783355263,2.76338936,4695.3,4695.1,0.01]
[1759783355464,7.56438936,4695.3,4695.1,0.01]
[1759783355779,8.9124683,4695.3,4695.1,0.01]
[1759783355983,8.99771679,4695.3,4695.1,0.01]
[1759783356392,6.59671679,4695.3,4695.1,0.01]
[1759783356607,8.99771679,4695.3,4695.1,0.01]
[1759783356758,8.99771679,4695.3,4695.1,0.011]
[1759783364286,8.97831679,4695.3,4695.1,0.011]
[1759783365416,9.17447373,4695.3,4695.1,0.011]
[1759783366648,1.69860842,4694.3,4692.8,2.13092377]
[1759783366791,1.08387126,4694.0,4693.4,2.9e-07]
[1759783366991,0.6336,4693.7,4693.4,2.9e-07]
[1759783367686,0.6336,4693.8,4693.4,2.9e-07]
[1759783368722,0.6336,4693.7,4693.4,2.9e-07]
[1759783369915,0.6336,4694.3,4693.4,2.9e-07]
[1759783370126,0.6336,4693.5,4693.4,2.9e-07]
[1759783370432,0.6336,4693.6,4693.4,2.9e-07]
[1759783370927,0.6336,4693.5,4693.4,2.9e-07]
[1759783372318,2.76420615,4693.5,4693.4,2.9e-07]
[1759783372529,0.6336,4693.5,4693.4,2.9e-07]
[1759783373836,2.76420615,4693.5,4693.4,2.9e-07]
[1759783375200,3.90610251,4693.5,4693.4,2.9e-07]
[1759783375405,6.30710251,4693.5,4693.4,2.9e-07]
[1759783375708,6.76141439,4693.5,4693.4,2.9e-07]
[1759783376307,6.76141439,4693.5,4691.7,0.01313364]
[1759783376308,7.03080824,4693.5,4691.7,0.01313364]
[1759783376555,4.53142357,4691.7,4690.6,0.01342129]
[1759783376833,0.74,4691.2,4690.6,0.01342129]
[1759783377010,3.06872379,4691.2,4690.6,0.01342129]
[1759783377732,0.93707304,4691.2,4690.6,0.01342129]
[1759783378309,2.96232379,4691.2,4690.6,0.01342129]
[1759783378842,0.83067304,4691.2,4690.6,0.01342129]
[1759783379267,0.6336,4691.2,4690.7,0.0231]
[1759783380062,0.6336,4691.2,4690.7,2.15497281]
[1759783380545,0.6336,4691.2,4691.1,0.0331]
[1759783381677,0.08529121,4692.1,4691.1,0.0331]
[1759783381678,0.08529121,4692.1,4691.1,0.48958848]
[1759783381882,2.13101764,4692.6,4691.2,0.0231]
[1759783382038,0.19634899,4692.5,4691.9,2.13128941]
[1759783382241,2.77029048,4693.2,4692.1,2.13123508]
[1759783382439,0.19634052,4693.1,4692.0,2.4251]
[1759783382682,0.19634052,4693.1,4692.1,2.13120154]
[1759783382864,0.19634052,4693.0,4692.0,2.4251]
[1759783383170,0.19634851,4692.9,4692.1,2.402]
[1759783383372,2.13087884,4692.9,4692.1,2.402]
[1759783383734,2.13092772,4692.8,4692.1,2.402]
[1759783383937,2.13092772,4692.8,4691.8,2.4]
[1759783383938,0.6336,4692.7,4691.5,2.4]
[1759783384170,0.6336,4692.5,4691.6,2.402]
[1759783384483,0.6336,4692.1,4691.2,2.402]
[1759783384637,2.7649396,4691.9,4691.2,2.402]
[1759783384843,2.56795631,4692.1,4691.2,2.402]
[1759783385078,2.76502686,4691.7,4691.2,2.402]
[1759783385441,2.76502686,4691.7,4690.7,2.13187736]
[1759783385951,0.6336,4691.7,4691.2,2.402]
[1759783386372,0.6336,4691.7,4690.6,0.03652129]
[1759783386681,0.6336,4691.6,4690.9,2.4]
[1759783386854,0.6336,4691.6,4691.1,2.412]
[1759783387235,0.6336,4691.6,4691.1,0.01]
[1759783387440,0.6336,4691.5,4691.1,0.01]
[1759783387641,0.4367,4691.6,4691.1,0.01]
[1759783387867,0.6336,4691.8,4691.1,0.01]
[1759783388066,2.76497825,4691.8,4691.1,0.01]
[1759783388278,0.74,4691.2,4691.1,0.00690255]
[1759783389270,0.74,4691.2,4691.1,2.40890255]
[1759783389577,0.74,4691.2,4691.1,2.40990255]
[1759783390773,0.74,4691.2,4691.1,2.406821]
[1759783391882,0.74,4691.2,4691.1,2.404821]
[1759783392067,0.74,4691.2,4691.1,4.806821]
[1759783392780,0.74,4691.2,4691.1,2.406821]
[1759783392954,0.74,4691.2,4691.1,4.53851719]
[1759783393273,0.74,4691.2,4691.1,6.96161719]
[1759783394179,0.74,4691.2,4691.1,2.406821]
[1759783394399,0.74,4691.2,4691.1,4.53851719]
[1759783394601,0.10703,4692.7,4691.1,4.829921]
[1759783394777,0.48947482,4693.5,4692.1,2.13121959]
[1759783394778,0.1064,4692.3,4692.1,2.13121959]
[1759783394972,0.6336,4692.2,4692.1,4.53324187]
[1759783395176,0.4367,4693.0,4692.2,2.13119645]
[1759783395479,0.1064,4692.5,4692.1,2.402]
[1759783396067,0.6336,4692.4,4692.1,2.402]
[1759783396481,0.6336,4692.4,4692.1,4.53323068]
[1759783397681,0.6336,4692.4,4692.1,2.402]
[1759783397885,0.6336,4692.4,4692.1,4.5332398]
[1759783398269,0.6336,4692.4,4692.2,2.13118779]
[1759783399604,0.1064,4692.5,4692.2,2.13118779]
[1759783399808,0.1064,4692.5,4692.1,4.53323967]
[1759783400005,0.1064,4692.5,4692.1,2.402]
[1759783400709,0.1064,4692.5,4692.2,2.13116172]
[1759783400874,0.1064,4692.5,4692.4,2.13110561]
[1759783401309,0.1064,4692.5,4692.3,2.13114271]
[1759783401470,0.1064,4692.5,4692.4,2.402]
[1759783403805,0.5431,4692.5,4692.4,2.402]
[1759783404170,0.5431,4692.5,4692.0,2.13128318]
[1759783404381,0.5431,4692.5,4692.1,2.402]
[1759783404594,0.5431,4692.5,4692.1,4.53323818]
[1759783404595,0.1064,4692.5,4692.1,4.53323818]
[1759783404820,0.1064,4692.5,4692.1,2.402]
[1759783405525,0.1064,4692.5,4692.1,4.53323546]
[1759783406085,0.1064,4692.5,4692.2,2.402]
[1759783406287,0.1064,4692.5,4692.2,4.53319122]
[1759783406486,0.1064,4692.5,4692.3,2.402]
[1759783407497,0.1064,4692.5,4692.4,2.402]
[1759783408816,0.1084,4692.5,4692.4,2.402]
[1759783409120,0.002,4692.5,4692.4,2.402]
[1759783410023,0.002,4692.5,4692.1,0.001]
[1759783410024,1.0723,4692.5,4692.1,0.001]
[1759783410190,0.4367,4692.4,4692.1,0.001]
[1759783410391,2.76479645,4692.2,4692.1,0.001]
[1759783410603,3.09578609,4692.2,4692.1,0.001]
[1759783410808,3.53248609,4692.2,4692.1,0.001]
[1759783411007,3.72866492,4692.2,4692.1,0.001]
[1759783414606,12.01217027,4692.2,4692.1,0.001]
[1759783417238,12.01144608,4692.2,4692.1,0.001]
[1759783419623,12.01144608,4692.2,4690.6,1e-08]
[1759783419624,0.6336,4691.9,4690.6,1e-08]
[1759783419812,0.6336,4691.9,4688.1,0.01]
[1759783419813,2.13242349,4689.5,4688.1,0.01]
[1759783420166,0.6336,4689.5,4688.8,1.44422397]
[1759783420321,0.6336,4689.5,4689.0,0.0341]
[1759783420524,0.6336,4689.5,4688.8,1.41012397]
[1759783420827,0.6336,4689.5,4689.4,0.04780894]
[1759783421229,0.6336,4689.5,4689.4,0.01370894]
[1759783421745,2.76602349,4689.5,4689.4,0.01370894]
[1759783422248,0.6336,4689.5,4689.4,0.01370894]
[1759783422553,0.6336,4689.5,4689.4,0.29047983]
[1759783423212,0.6336,4689.5,4689.4,0.04780894]
[1759783424561,0.6336,4689.5,4689.4,0.01370894]
[1759783424761,0.6336,4689.5,4689.4,2.41670894]
[1759783424966,0.74,4689.5,4689.4,2.41670894]
[1759783425160,0.74,4689.5,4689.4,2.45080894]
[1759783425767,0.74,4689.5,4689.4,2.41670894]
[1759783426064,0.74,4689.5,4689.4,2.45080894]
[1759783426737,0.1064,4689.5,4689.4,4.58327791]
[1759783426945,0.6336,4690.4,4689.4,4.58327791]
[1759783427151,0.1064,4689.7,4689.4,4.58327791]
[1759783427370,0.1064,4689.7,4689.5,0.0341]
[1759783427537,0.1064,4689.7,4689.4,0.01370894]
[1759783427736,0.1064,4689.7,4689.5,2.403]
[1759783429551,0.74,4689.7,4689.5,2.403]
[1759783429957,0.74,4689.7,4689.4,0.01370894]
[1759783430172,0.74,4689.7,4689.5,2.403]
[1759783431077,0.74,4689.7,4689.4,0.01370894]
[1759783431286,0.74,4689.7,4689.6,2.403]
[1759783432358,0.74,4689.7,4689.6,4.81124891]